fUSD/lending_fUSD_20250106
["ID","MTS","AMOUNT","RATE_DAILY","PERIOD"]
[347881099,1736179840782,-6181.29130136,0.00012116,2]
[347881100,1736179840791,-181.061,0.00012124,2]
[347881101,1736179840801,-2746.709,0.00012124,2]
[347881102,1736179840811,-150.0,0.00012139,2]
[347881103,1736179840822,-1500.0,0.00012162,2]
[347881104,1736179840832,-150.0,0.00012165,2]
[347881105,1736179840841,-3000.0,0.0001218,2]
[347881106,1736179840851,-500.0,0.00012189,2]
[347881107,1736179840860,-500.0,0.00012189,2]
[347881108,1736179840870,-500.0,0.00012189,2]
[347881109,1736179840879,-500.0,0.00012189,2]
[347881110,1736179840888,-157.55336164,0.00012189,2]
[347881111,1736179840898,-916.34,0.00012189,2]
[347881112,1736179840908,-752.29,0.00012189,2]
[347881113,1736179840917,-552.93,0.00012189,2]
[347881114,1736179840926,-996.25,0.00012189,2]
[347881115,1736179840935,-500.0,0.00012189,2]
[347881116,1736179840945,-500.0,0.00012189,2]
[347881117,1736179840955,-500.0,0.0001219,2]
[347881118,1736179840964,-500.0,0.0001219,2]
[347881119,1736179840973,-800.58,0.0001219,2]
[347881120,1736179840983,-1176.96,0.0001219,2]
[347881121,1736179840992,-1272.57,0.0001219,2]
[347881122,1736179841002,-500.0,0.0001219,2]
[347881123,1736179841011,-500.0,0.0001219,2]
[347881124,1736179841021,-150.0,0.00012191,2]
[347881125,1736179841031,-500.0,0.00012191,2]
[347881126,1736179841040,-500.0,0.00012191,2]
[347881127,1736179841050,-537.24,0.00012191,2]
[347881128,1736179841060,-537.24,0.00012191,2]
[347881129,1736179841071,-530.64,0.00012191,2]
[347881130,1736179841081,-530.64,0.00012191,2]
[347881131,1736179841091,-2142.1,0.00012191,2]
[347881132,1736179841101,-766.56,0.00012191,2]
[347881133,1736179841111,-668.79652407,0.00012197,2]
[347881134,1736179841120,-7308.8507,0.00012199,2]
[347881135,1736179841130,-461.62307999,0.000122,2]
[347881136,1736179841139,-703.0,0.000122,2]
[347881137,1736179841148,-1075.48450189,0.000122,2]
[347881138,1736179841157,-1386.30817923,0.000122,2]
[347881139,1736179841166,-185.0,0.00012206,2]
[347881140,1736179841177,-154.01,0.00012206,2]
[347881141,1736179841187,-150.0,0.00012232,2]
[347881142,1736179841197,-242.12,0.00012239,2]
[347881143,1736179841206,-185.0,0.00012239,2]
[347881144,1736179841215,-217.0,0.00012239,2]
[347881145,1736179841224,-2050.0,0.0001229,16]
[347881146,1736179841234,-104768.62463614,0.00012291,2]
[347881147,1736179841243,-51350.18633516,0.00012291,2]
[347881148,1736179841254,-8440.147034,0.00012291,2]
[347881149,1736179841266,-2215.19999995,0.00012291,2]
[347881150,1736179841278,-1093.35803665,0.00012291,2]
[347881151,1736179841289,-614.622792,0.00012291,2]
[347881152,1736179841301,-900.0,0.00012291,2]
[347881153,1736179841313,-937.42381213,0.00012291,2]
[347881168,1736179841753,-151.01985489,0.00010664,2]
[347881169,1736179841764,-503.35326117,0.00010819,2]
[347881171,1736179841774,-377.49607271,0.00010819,2]
[347881172,1736179841783,-502.71056819,0.00010819,2]
[347881173,1736179841793,-500.0,0.00010998,2]
[347881174,1736179841802,-500.0,0.00010999,2]
[347881175,1736179841811,-376.40553822,0.00011368,2]
[347881176,1736179841825,-267.50446178,0.00011368,2]
[347881177,1736179841835,-643.91,0.00011642,2]
[347881178,1736179841844,-643.91,0.00011916,2]
[347881179,1736179841854,-643.91,0.0001219,2]
[347881180,1736179841863,-7559.58552722,0.00012291,2]
[347881181,1736179841874,-2687.08473609,0.00012291,2]
[347881182,1736179841886,-12272.4,0.00012291,2]
[347881183,1736179841903,-962.27568736,0.00012291,2]
[347881184,1736179841915,-103762.1580193,0.00012291,2]
[347881185,1736179841933,-449.23479685,0.00010994,2]
[347881186,1736179841944,-50.76520315,0.00010994,2]
[347881187,1736179841954,-14893.36000857,0.00012291,2]
[347881188,1736179841965,-54176.52385859,0.00012291,2]
[347881189,1736179841988,-1576.99554451,0.00012291,2]
[347881190,1736179841999,-1977.8158802,0.00012291,2]
[347881191,1736179842010,-78840.18433979,0.00012291,2]
[347881192,1736179842022,-20669.6144265,0.00012291,2]
[347881193,1736179842034,-33687.70459654,0.00012291,2]
[347881194,1736179842043,-484.6554163,0.00012297,2]
[347881195,1736179842052,-500.0,0.00012298,2]
[347881196,1736179842061,-500.0,0.00012298,2]
[347881197,1736179842072,-500.0,0.00012298,2]
[347881198,1736179842081,-1169.05,0.00012298,2]
[347881199,1736179842091,-500.0,0.00012298,2]
[347881200,1736179842100,-500.0,0.00012298,2]
[347881201,1736179842109,-500.0,0.00012298,2]
[347881202,1736179842118,-500.0,0.00012298,2]
[347881203,1736179842127,-500.0,0.00012298,2]
[347881204,1736179842136,-1000.0,0.00012298,2]
[347881205,1736179842146,-500.0,0.00012298,2]
[347881206,1736179842155,-500.0,0.00012298,2]
[347881207,1736179842164,-775.61,0.00012298,2]
[347881208,1736179842174,-500.0,0.00012298,2]
[347881209,1736179842183,-2000.0,0.00012299,2]
[347881210,1736179842192,-2000.0,0.00012299,2]
[347881211,1736179842202,-2000.0,0.00012299,2]
[347881212,1736179842211,-2000.0,0.00012299,2]
[347881213,1736179842221,-2000.0,0.00012299,2]
[347881214,1736179842230,-2000.0,0.00012299,2]
[347881215,1736179842239,-2000.0,0.00012299,2]
[347881216,1736179842248,-500.0,0.00012299,2]
[347881217,1736179842258,-62789.46322121,0.000123,4]
[347881218,1736179842270,-1374.12933306,0.000123,4]
[347881219,1736179842282,-262.7236278,0.000123,4]
[347881220,1736179842415,-500.0,0.00010819,2]
[347881221,1736179842424,-500.0,0.00011273,2]
[347881222,1736179842435,-216098.0465341,0.000123,4]
[347881223,1736179842446,-7552.66,0.000123,4]
[347881224,1736179842457,-4914.85229797,0.000123,4]
[347881225,1736179842525,-430.15697055,0.00011093,2]
[347881226,1736179842535,-328.72956027,0.000123,4]
[347881227,1736179842546,-1025.2,0.000123,4]
[347881228,1736179842558,-734.67192253,0.000123,4]
[347881229,1736179842572,-1891.01197399,0.000123,4]
[347881230,1736179842771,-335.70021779,0.000123,4]
[347881231,1736179842788,-564.6989879,0.000123,4]
[347881232,1736179842799,-4785.83642843,0.000123,4]
[347881233,1736179842810,-369.515,0.000123,4]
[347881234,1736179842822,-27144.67723563,0.000123,4]
[347881258,1736179843245,-7000.76642,0.000123,4]
[347881259,1736179843256,-696.4283,0.000123,4]
[347881261,1736179843268,-1378013.373364,0.000123,4]
[347881263,1736179843277,-956775.54258567,0.000123,2]
[347881271,1736179843354,-637.5221,0.000123,2]
[347881273,1736179843367,-979.08926999,0.000123,2]
[347881278,1736179843410,-1240431.74742944,0.000123,2]
[347881285,1736179843467,-6178.1991742,0.000123,2]
[347881292,1736179843523,-263.86867618,0.000123,2]
[347881294,1736179843535,-563.4184979,0.000123,2]
[347881299,1736179843581,-380.100007,0.000123,2]
[347881314,1736179846277,-929.20275453,0.00010994,2]
[347881315,1736179846290,-294.53724547,0.00010994,2]
[347881316,1736179846300,-100.40525441,0.00011268,2]
[347881317,1736179846529,-1123.33474559,0.00011268,2]
[347881318,1736179846539,-1223.74,0.00011542,2]
[347881319,1736179846549,-1223.74,0.00011816,2]
[347881320,1736179846558,-1223.74,0.0001209,2]
[347881321,1736179846569,-104.47129441,0.000123,2]
[347881322,1736179846582,-13013.77869809,0.000123,2]
[347881323,1736179846594,-2131.153454,0.000123,2]
[347881324,1736179846606,-5114.5,0.000123,2]
[347881325,1736179846618,-77885.55109352,0.000123,2]
[347881326,1736179846630,-3086.88552804,0.000123,2]
[347881327,1736179846642,-5850.15,0.000123,2]
[347881328,1736179846653,-481.60679252,0.000123,2]
[347881329,1736179846665,-20903.96988347,0.000123,2]
[347881331,1736179846676,-42025.59500107,0.000123,2]
[347881333,1736179846688,-11624.0,0.000123,2]
[347881334,1736179846720,-405.54569945,0.000122,2]
[347881335,1736179846729,-3996.81051843,0.000123,2]
[347881336,1736179846741,-2192.24609665,0.000123,2]
[347881337,1736179846752,-4341.3166,0.000123,2]
[347881338,1736179846770,-2665.01990662,0.000123,2]
[347881340,1736179846782,-107961.63554234,0.000123,2]
[347881342,1736179846793,-31630.28365251,0.000123,2]
[347881344,1736179846806,-1855.47911815,0.000123,2]
[347881347,1736179846818,-653.95651033,0.000123,2]
[347881766,1736180581103,156.0,2.5e-05,2]
[347881767,1736180598139,-352.06837933,0.000162,45]
[347881768,1736180623103,-36729.0,0.00012788,15]
[347881769,1736180642757,186.0,3.088e-05,2]
[347881770,1736180701523,138.8388049,3.088e-05,2]
[347881771,1736180701548,21.1611951,3.088e-05,2]
[347881777,1736180755978,9223.81187903,6.94e-05,2]
[347881779,1736180768201,11046.41809499,7e-05,2]
[347881780,1736180816105,-219.34119438,8.219e-05,2]
[347881907,1736181032499,-488.87880562,8.219e-05,2]
[347881908,1736181032510,-250.0,9.232e-05,2]
[347881909,1736181032521,-289.01,9.353e-05,2]
[347881910,1736181032531,-572.60502449,9.729e-05,2]
[347881911,1736181032541,-572.60502449,9.798e-05,2]
[347881912,1736181032551,-300.0,9.828e-05,2]
[347881913,1736181032560,-617.34931369,9.829e-05,2]
[347881914,1736181032607,-10402.32068631,9.829e-05,2]
[347881915,1736181032618,-1000.0,9.834e-05,2]
[347881916,1736181032629,-150.0,9.897e-05,2]
[347881917,1736181032639,-500.0,9.898e-05,2]
[347881918,1736181032649,-500.0,9.898e-05,2]
[347881919,1736181032659,-500.0,9.898e-05,2]
[347881920,1736181032668,-500.0,9.898e-05,2]
[347881921,1736181032678,-500.0,9.898e-05,2]
[347881922,1736181032688,-545.6,9.898e-05,2]
[347881923,1736181032697,-500.0,9.898e-05,2]
[347881924,1736181032707,-1455.1,9.899e-05,2]
[347881925,1736181032716,-500.0,9.899e-05,2]
[347881926,1736181032726,-500.0,9.899e-05,2]
[347881927,1736181032735,-500.0,9.899e-05,2]
[347881928,1736181032745,-1278.06,9.899e-05,2]
[347881929,1736181032755,-500.0,9.899e-05,2]
[347881930,1736181032764,-500.0,9.899e-05,2]
[347881931,1736181032774,-154.3376594,9.924e-05,2]
[347881932,1736181032783,-151.79203845,9.973e-05,2]
[347881933,1736181032793,-501.88580547,9.973e-05,2]
[347881934,1736181032803,-151.79203877,9.973e-05,2]
[347881935,1736181032813,-503.46474871,9.973e-05,2]
[347881936,1736181032822,-151.79203845,9.973e-05,2]
[347881937,1736181032831,-151.79203845,9.973e-05,2]
[347881938,1736181032840,-151.79203877,9.973e-05,2]
[347881940,1736181032852,-159.78109328,9.973e-05,2]
[347881941,1736181032861,-159.78109328,9.973e-05,2]
[347881942,1736181032871,-152.79067044,9.973e-05,2]
[347881943,1736181032884,-199.62650341,9.973e-05,2]
[347881944,1736181032894,-325.23458305,9.973e-05,2]
[347881945,1736181032903,-150.78781115,9.973e-05,2]
[347881947,1736181032914,-3968.2944,9.988e-05,2]
[347881949,1736181032923,-500.0,9.997e-05,2]
[347881951,1736181032933,-500.0,9.997e-05,2]
[347881953,1736181032942,-1000.0,9.997e-05,2]
[347881955,1736181032953,-500.0,9.997e-05,2]
[347881956,1736181032962,-500.0,9.997e-05,2]
[347881958,1736181032971,-778.59,9.997e-05,2]
[347881960,1736181032980,-500.0,9.997e-05,2]
[347881962,1736181032990,-500.0,9.999e-05,2]
[347881964,1736181033000,-500.0,9.999e-05,2]
[347881965,1736181033010,-500.0,9.999e-05,2]
[347881967,1736181033020,-500.0,9.999e-05,2]
[347881969,1736181033030,-500.0,9.999e-05,2]
[347881971,1736181033039,-500.0,9.999e-05,2]
[347881972,1736181033049,-500.0,9.999e-05,2]
[347881973,1736181033059,-728.44,9.999e-05,2]
[347881974,1736181033068,-636.83,9.999e-05,2]
[347881975,1736181033077,-500.0,9.999e-05,2]
[347881976,1736181033087,-500.0,9.999e-05,2]
[347881977,1736181033097,-386.20196357,9.999e-05,2]
[347881978,1736181033110,-217.4105222,9.999e-05,2]
[347881979,1736181033121,-174.48065194,9.999e-05,2]
[347881980,1736181033130,-4530.47842127,0.0001,2]
[347881981,1736181033139,-8141.55040459,0.0001,2]
[347881982,1736181033186,-857.08959541,0.0001,2]
[347881983,1736181033196,-144.42120902,0.0001,2]
[347881984,1736181033209,-34137.1840977,0.0001,2]
[347881985,1736181033222,-437.11199998,0.0001,2]
[347881986,1736181033235,-600.0,0.0001,2]
[347881987,1736181033259,-569613.26243075,0.0001,2]
[347881994,1736181038329,-990.06,9.999e-05,2]
[347881995,1736181038340,-500.0,9.999e-05,2]
[347881996,1736181038350,-503.11114143,9.999e-05,2]
[347881997,1736181038362,-7403372.62294387,0.0001,2]
[347881998,1736181038386,-447.500003,0.0001,2]
[347881999,1736181038403,-2663.27874516,0.0001,2]
[347882000,1736181038415,-6160.00003851,0.0001,2]
[347882001,1736181038426,-11157.499999,0.0001,2]
[347882002,1736181038457,-18735.74145583,0.0001,2]
[347882003,1736181038468,-9000.0,0.0001,2]
[347882004,1736181038515,-11299.51392,0.0001,2]
[347882005,1736181038572,-2246.4220392,0.0001,2]
[347882006,1736181038583,-327.936,0.0001,2]
[347882007,1736181038685,-1459.59538906,0.0001,2]
[347882151,1736181040442,-151.79203861,9.973e-05,2]
[347882153,1736181040451,-502.87625818,9.999e-05,2]
[347882155,1736181040461,-1248.11619434,0.0001,2]
[347882170,1736181040611,-497.48373036,0.0001,2]
[347882172,1736181040623,-18710.34466146,0.0001,2]
[347882489,1736181043414,-500.0,9.999e-05,2]
[347882492,1736181043424,-510.15508236,9.999e-05,2]
[347882495,1736181043433,-17.09531764,9.999e-05,2]
[347882504,1736181043472,-525.35468236,9.999e-05,2]
[347882507,1736181043482,-2336149.73292558,0.0001,2]
[347882516,1736181043523,-207.09643637,0.0001,2]
[347882519,1736181043533,-1009.62822599,0.0001,2]
[347882532,1736181043588,-1750.49911683,0.0001,2]
[347882539,1736181043647,-1319.63744278,0.0001,2]
[347882542,1736181043659,-2324.0453042,0.0001,2]
[347882544,1736181043670,-146643.3244161,0.0001,2]
[347882747,1736181046364,-51252.3,0.0001,2]
[347882751,1736181046376,-25951.00721653,0.0001,2]
[347882754,1736181046387,-23256.791552,0.0001,2]
[347882756,1736181046399,-1865.8,0.0001,2]
[347882758,1736181046410,-15524.93843364,0.0001,2]
[347882760,1736181046422,-5757.32615148,0.0001,2]
[347882762,1736181046433,-102498.45767748,0.0001,2]
[347882773,1736181046531,-334.15237416,0.0001,2]
[347882781,1736181046591,-655.82064329,0.0001,2]
[347882794,1736181046711,-14925.76417684,0.0001,2]
[347884233,1736181251387,-184.57,7.411e-05,2]
[347884374,1736182165129,-353.44,8.084e-05,2]
[347884375,1736182165151,-963.65,8.219e-05,2]
[347884376,1736182165175,-1000.0,8.219e-05,2]
[347884377,1736182165198,-1683.677974,8.232e-05,2]
[347884390,1736182231664,-250.0,8.232e-05,2]
[347884391,1736182231674,-288.2,8.309e-05,2]
[347884392,1736182231686,-248.81831686,8.309e-05,2]
[347884393,1736182231696,-84.46328314,8.31e-05,2]
[347884394,1736182231707,-215.53671686,8.31e-05,2]
[347884395,1736182231717,-305.16390162,8.347e-05,2]
[347884396,1736182231738,-6267.82609838,8.347e-05,2]
[347884397,1736182231747,-26275.5139522,8.388e-05,2]
[347884398,1736182231757,-2507.8,8.388e-05,2]
[347884399,1736182231767,-300.0,8.428e-05,2]
[347884400,1736182231776,-4352.52,8.429e-05,2]
[347884401,1736182231786,-1729.05,8.439e-05,2]
[347884402,1736182231795,-250.0,8.716e-05,2]
[347884403,1736182231808,-470.19,8.762e-05,2]
[347884404,1736182231818,-799.86,8.788e-05,2]
[347884405,1736182231827,-150.0,8.849e-05,2]
[347884406,1736182231837,-12343.25,8.85e-05,2]
[347884407,1736182231846,-289.01,8.98e-05,2]
[347884408,1736182231855,-4337.5877,8.986e-05,2]
[347884409,1736182231864,-150.0,9e-05,2]
[347884410,1736182231873,-150.0,9e-05,2]
[347884411,1736182231883,-150.0,9e-05,2]
[347884412,1736182231892,-324.15,9.013e-05,2]
[347884413,1736182231901,-2000.0,9.013e-05,2]
[347884414,1736182231911,-232.67,9.013e-05,2]
[347884415,1736182231920,-21680.05307693,9.079e-05,2]
[347884416,1736182231930,-200.0,9.08e-05,2]
[347884417,1736182231939,-150.99,9.08e-05,2]
[347884418,1736182231949,-28185.46,9.08e-05,2]
[347884419,1736182231958,-2936.4,9.08e-05,2]
[347884420,1736182231967,-7003.73,9.08e-05,2]
[347884421,1736182231977,-5444.91,9.08e-05,2]
[347884422,1736182231986,-150.99,9.08e-05,2]
[347884423,1736182231995,-299.99,9.08e-05,2]
[347884424,1736182232005,-71204.05,9.086e-05,2]
[347884425,1736182232014,-492.9145,9.116e-05,2]
[347884426,1736182232024,-7374.14,9.136e-05,2]
[347884427,1736182232033,-4788.67,9.16e-05,2]
[347884428,1736182232042,-150.0,9.2e-05,2]
[347884429,1736182232052,-23900.0,9.216e-05,2]
[347884430,1736182232062,-250.0,9.216e-05,2]
[347884431,1736182232071,-200.0,9.246e-05,2]
[347884432,1736182232081,-1000.0,9.247e-05,2]
[347884433,1736182232091,-169.65,9.264e-05,2]
[347884434,1736182232101,-420.0,9.271e-05,2]
[347884435,1736182232110,-687.49,9.285e-05,2]
[347884436,1736182232120,-1500.0,9.354e-05,2]
[347884437,1736182232129,-150.0,9.4e-05,2]
[347884438,1736182232138,-500.0,9.599e-05,2]
[347884439,1736182232148,-500.0,9.599e-05,2]
[347884440,1736182232157,-500.0,9.599e-05,2]
[347884441,1736182232166,-500.0,9.599e-05,2]
[347884442,1736182232176,-150.0,9.6e-05,2]
[347884443,1736182232186,-3297.9367,9.633e-05,2]
[347884444,1736182232195,-255.0,9.733e-05,2]
[347884445,1736182232204,-200.0,9.756e-05,2]
[347884446,1736182232214,-500.0,9.798e-05,2]
[347884447,1736182232223,-537.68,9.798e-05,2]
[347884448,1736182232236,-500.0,9.798e-05,2]
[347884449,1736182232246,-500.0,9.798e-05,2]
[347884450,1736182232255,-592.63,9.798e-05,2]
[347884451,1736182232264,-500.0,9.798e-05,2]
[347884452,1736182232274,-500.0,9.798e-05,2]
[347884453,1736182232283,-500.0,9.798e-05,2]
[347884454,1736182232292,-500.0,9.798e-05,2]
[347884455,1736182232304,-14448.7494,9.799e-05,2]
[347884456,1736182232315,-17171.1824,9.799e-05,2]
[347884457,1736182232326,-150.0,9.8e-05,2]
[347884458,1736182232335,-500.0,9.898e-05,2]
[347884459,1736182232345,-320.61840445,9.898e-05,2]
[347884460,1736182232354,-360.53425979,9.898e-05,2]
[347884461,1736182232363,-502.05437485,9.898e-05,2]
[347884462,1736182232373,-500.0,9.898e-05,2]
[347884463,1736182232382,-500.0,9.898e-05,2]
[347884464,1736182232391,-500.0,9.898e-05,2]
[347884465,1736182232401,-500.0,9.898e-05,2]
[347884466,1736182232411,-500.0,9.898e-05,2]
[347884467,1736182232420,-500.0,9.898e-05,2]
[347884468,1736182232430,-500.0,9.898e-05,2]
[347884469,1736182232440,-500.0,9.898e-05,2]
[347884470,1736182232449,-1666.99,9.898e-05,2]
[347884471,1736182232458,-500.0,9.898e-05,2]
[347884472,1736182232468,-500.0,9.898e-05,2]
[347884473,1736182232477,-500.0,9.898e-05,2]
[347884474,1736182232486,-500.0,9.898e-05,2]
[347884475,1736182232496,-500.0,9.898e-05,2]
[347884476,1736182232505,-500.0,9.898e-05,2]
[347884477,1736182232515,-251.68035848,9.898e-05,2]
[347884478,1736182232524,-9639.11,9.898e-05,2]
[347884479,1736182232534,-625.19511114,9.898e-05,2]
[347884480,1736182232544,-592.64,9.898e-05,2]
[347884481,1736182232555,-500.0,9.898e-05,2]
[347884482,1736182232565,-627.86098554,9.898e-05,2]
[347884483,1736182232574,-212.43646993,9.898e-05,2]
[347884484,1736182232585,-500.0,9.898e-05,2]
[347884485,1736182232594,-500.0,9.898e-05,2]
[347884486,1736182232603,-500.0,9.898e-05,2]
[347884487,1736182232612,-955.47,9.898e-05,2]
[347884488,1736182232622,-422.79743739,9.898e-05,2]
[347884489,1736182232631,-374.26799413,9.898e-05,2]
[347884490,1736182232640,-500.0,9.898e-05,2]
[347884491,1736182232650,-500.0,9.898e-05,2]
[347884492,1736182232659,-204.10469539,9.898e-05,2]
[347884493,1736182232668,-500.0,9.898e-05,2]
[347884494,1736182232677,-500.0,9.898e-05,2]
[347884495,1736182232687,-500.0,9.898e-05,2]
[347884496,1736182232696,-500.0,9.898e-05,2]
[347884497,1736182232705,-500.0,9.898e-05,2]
[347884498,1736182232715,-519.7,9.898e-05,2]
[347884499,1736182232724,-500.0,9.898e-05,2]
[347884500,1736182232733,-492.86723283,9.898e-05,2]
[347884501,1736182232743,-247.03,9.898e-05,2]
[347884502,1736182232752,-500.0,9.898e-05,2]
[347884503,1736182232761,-500.0,9.898e-05,2]
[347884504,1736182232770,-500.0,9.898e-05,2]
[347884505,1736182232779,-546.26767148,9.898e-05,2]
[347884506,1736182232789,-500.0,9.898e-05,2]
[347884507,1736182232798,-500.0,9.898e-05,2]
[347884508,1736182232812,-500.0,9.898e-05,2]
[347884509,1736182232826,-500.0,9.898e-05,2]
[347884510,1736182232835,-354.39976944,9.898e-05,2]
[347884511,1736182232844,-500.0,9.899e-05,2]
[347884512,1736182232853,-500.0,9.899e-05,2]
[347884513,1736182232863,-500.0,9.899e-05,2]
[347884514,1736182232872,-500.0,9.899e-05,2]
[347884515,1736182232881,-500.0,9.899e-05,2]
[347884516,1736182232891,-500.0,9.899e-05,2]
[347884517,1736182232900,-500.0,9.899e-05,2]
[347884518,1736182232911,-500.0,9.899e-05,2]
[347884519,1736182232920,-500.0,9.899e-05,2]
[347884520,1736182232929,-500.0,9.899e-05,2]
[347884521,1736182232938,-500.0,9.899e-05,2]
[347884522,1736182232950,-500.0,9.899e-05,2]
[347884523,1736182232959,-500.0,9.899e-05,2]
[347884524,1736182232968,-500.0,9.899e-05,2]
[347884525,1736182232978,-481.18359853,9.899e-05,2]
[347884526,1736182232987,-500.0,9.899e-05,2]
[347884527,1736182232996,-500.0,9.899e-05,2]
[347884528,1736182233006,-500.0,9.899e-05,2]
[347884529,1736182233015,-500.0,9.899e-05,2]
[347884530,1736182233024,-500.0,9.899e-05,2]
[347884531,1736182233033,-500.0,9.899e-05,2]
[347884532,1736182233043,-500.0,9.899e-05,2]
[347884533,1736182233057,-500.0,9.899e-05,2]
[347884534,1736182233068,-500.0,9.899e-05,2]
[347884535,1736182233078,-500.0,9.899e-05,2]
[347884536,1736182233088,-500.0,9.899e-05,2]
[347884537,1736182233097,-500.0,9.899e-05,2]
[347884538,1736182233107,-500.0,9.899e-05,2]
[347884539,1736182233116,-500.0,9.899e-05,2]
[347884540,1736182233126,-500.0,9.899e-05,2]
[347884541,1736182233135,-500.0,9.899e-05,2]
[347884542,1736182233145,-500.0,9.899e-05,2]
[347884543,1736182233155,-500.0,9.899e-05,2]
[347884544,1736182233165,-500.0,9.899e-05,2]
[347884545,1736182233174,-500.0,9.899e-05,2]
[347884546,1736182233184,-351.26411594,9.899e-05,2]
[347884547,1736182233194,-500.0,9.899e-05,2]
[347884548,1736182233204,-500.0,9.899e-05,2]
[347884549,1736182233214,-500.0,9.899e-05,2]
[347884550,1736182233223,-500.0,9.899e-05,2]
[347884551,1736182233234,-500.0,9.899e-05,2]
[347884552,1736182233246,-500.0,9.899e-05,2]
[347884553,1736182233257,-500.0,9.899e-05,2]
[347884554,1736182233267,-500.0,9.899e-05,2]
[347884555,1736182233277,-500.0,9.899e-05,2]
[347884556,1736182233287,-500.0,9.899e-05,2]
[347884557,1736182233297,-500.0,9.899e-05,2]
[347884558,1736182233311,-500.0,9.899e-05,2]
[347884559,1736182233323,-500.0,9.899e-05,2]
[347884560,1736182233332,-500.0,9.899e-05,2]
[347884561,1736182233342,-500.0,9.899e-05,2]
[347884562,1736182233352,-500.0,9.899e-05,2]
[347884563,1736182233361,-500.0,9.899e-05,2]
[347884564,1736182233371,-500.0,9.899e-05,2]
[347884565,1736182233381,-500.0,9.899e-05,2]
[347884566,1736182233390,-500.0,9.899e-05,2]
[347884567,1736182233400,-500.0,9.899e-05,2]
[347884568,1736182233409,-500.0,9.899e-05,2]
[347884569,1736182233419,-500.0,9.899e-05,2]
[347884570,1736182233428,-500.0,9.899e-05,2]
[347884571,1736182233438,-500.0,9.899e-05,2]
[347884572,1736182233447,-500.0,9.899e-05,2]
[347884573,1736182233456,-500.0,9.899e-05,2]
[347884574,1736182233466,-500.0,9.899e-05,2]
[347884575,1736182233475,-500.0,9.899e-05,2]
[347884576,1736182233484,-500.0,9.899e-05,2]
[347884577,1736182233494,-500.0,9.899e-05,2]
[347884578,1736182233503,-500.0,9.899e-05,2]
[347884579,1736182233512,-500.0,9.899e-05,2]
[347884580,1736182233740,-500.0,9.899e-05,2]
[347884581,1736182233751,-500.0,9.899e-05,2]
[347884582,1736182233761,-500.0,9.899e-05,2]
[347884583,1736182233771,-504.06543452,9.899e-05,2]
[347884584,1736182233782,-500.0,9.899e-05,2]
[347884585,1736182233792,-389.772756,9.899e-05,2]
[347884586,1736182233806,-500.0,9.899e-05,2]
[347884587,1736182233816,-157.900395,9.899e-05,2]
[347884588,1736182233826,-500.0,9.899e-05,2]
[347884589,1736182233835,-156.2883,9.899e-05,2]
[347884590,1736182233846,-1054.21,9.899e-05,2]
[347884591,1736182233856,-500.0,9.899e-05,2]
[347884592,1736182233866,-500.0,9.899e-05,2]
[347884593,1736182233876,-500.0,9.899e-05,2]
[347884594,1736182233886,-522.06171876,9.899e-05,2]
[347884595,1736182233896,-456.091443,9.899e-05,2]
[347884596,1736182233906,-500.0,9.899e-05,2]
[347884597,1736182233916,-205.22344867,9.899e-05,2]
[347884598,1736182233926,-500.0,9.899e-05,2]
[347884599,1736182233935,-500.0,9.899e-05,2]
[347884600,1736182233947,-502.15216691,9.899e-05,2]
[347884601,1736182233958,-500.0,9.899e-05,2]
[347884602,1736182233968,-500.0,9.899e-05,2]
[347884603,1736182233978,-500.0,9.899e-05,2]
[347884604,1736182233988,-500.0,9.899e-05,2]
[347884605,1736182233998,-500.0,9.899e-05,2]
[347884606,1736182234008,-501.65621525,9.899e-05,2]
[347884607,1736182234018,-500.0,9.899e-05,2]
[347884608,1736182234027,-500.0,9.899e-05,2]